bitfinex-derivatives/quotes_SOLF0:USTF0_20250514
["timestamp","ask_amount","ask_price","bid_price","bid_amount"]
[1747199047783,4.29806899,182.16,182.12,19.211]
[1747199048087,9.78806899,182.16,182.13,5.4908]
[1747199048389,9.78806899,182.16,182.12,13.72]
[1747199048689,4.29806899,182.16,182.12,13.72]
[1747199048986,4.29806899,182.13,182.12,13.72]
[1747199049180,9.78886899,182.13,182.12,13.72]
[1747199049380,66.24,182.16,182.12,13.72]
[1747199049583,4.29806899,182.15,182.12,13.72]
[1747199049792,4.29806899,182.15,182.11,57.64]
[1747199050089,9.78856899,182.15,182.11,63.1313]
[1747199050288,4.29806899,182.15,182.11,63.1313]
[1747199051191,66.24,182.16,182.11,57.64]
[1747199051393,165.2386081,182.17,182.11,57.64]
[1747199051689,65.1,182.16,182.11,57.64]
[1747199051881,65.1,182.16,182.15,5.4902]
[1747199053294,231.3586081,182.17,182.16,5.4899]
[1747199053496,66.12,182.17,182.16,5.4899]
[1747199054391,66.24,182.2,182.17,5.4895]
[1747199054691,66.06,182.19,182.17,5.4895]
[1747199055295,65.98,182.19,182.11,57.64]
[1747199056197,70.27806899,182.19,182.11,57.64]
[1747199056389,70.27806899,182.19,182.13,5.4908]
[1747199056591,70.27806899,182.19,182.11,57.64]
[1747199056790,4.29806899,182.17,182.11,57.64]
[1747199057194,65.98,182.19,182.11,57.64]
[1747199057598,71.4691,182.19,182.11,57.64]
[1747199058098,71.4691,182.19,182.13,5.4905]
[1747199058496,9.78736899,182.18,182.11,57.64]
[1747199058700,0.99344678,182.18,182.11,57.64]
[1747199058995,70.27806899,182.19,182.11,57.64]
[1747199059803,70.27806899,182.19,182.14,5.4903]
[1747199060295,75.76706899,182.19,182.14,5.4903]
[1747199060495,65.98,182.19,182.14,5.4903]
[1747199060700,65.98,182.19,182.1,19.1722]
[1747199061595,65.98,182.19,182.11,66.52]
[1747199061796,331.5755496,182.22,182.11,66.52]
[1747199062099,331.5755496,182.22,182.1,19.1722]
[1747199062292,331.5755496,182.22,182.11,66.52]
[1747199062495,331.5755496,182.22,182.16,5.4897]
[1747199062896,331.5755496,182.22,182.12,110.44]
[1747199063205,163.23549799,182.27,182.12,48.21806899]
[1747199063206,162.27986097,182.27,182.12,48.21806899]
[1747199063400,166.57792996,182.27,182.13,13.72]
[1747199063595,166.57792996,182.27,182.14,66.52]
[1747199063596,0.99303833,182.26,182.14,66.52]
[1747199063799,5.4876,182.24,182.19,5.4888]
[1747199064000,67.6,182.23,182.19,5.4888]
[1747199064197,67.6,182.23,182.13,13.72]
[1747199064402,0.99325205,182.22,182.13,13.72]
[1747199064603,0.99325205,182.22,182.13,80.24]
[1747199065107,6.48165205,182.22,182.13,80.24]
[1747199065608,5.4884,182.22,182.17,5.4894]
[1747199065907,70.66,182.25,182.13,80.24]
[1747199066110,357.01569413,182.32,182.27,5.4866]
[1747199066410,357.01569413,182.32,182.2,70.42]
[1747199066609,4.26840562,182.31,182.2,3.623]
[1747199066805,4.26840562,182.31,182.2,74.043]
[1747199067006,15.19710562,182.31,182.2,74.043]
[1747199067208,72.69292434,182.3,182.2,74.043]
[1747199067407,4.26840562,182.28,182.2,3.623]
[1747199067805,0.99291567,182.27,182.18,1.7156]
[1747199068210,6.47951567,182.27,182.22,5.4878]
[1747199068415,0.99291567,182.27,182.22,5.4878]
[1747199069013,4.26840562,182.25,182.18,1.7156]
[1747199069315,75.70840562,182.25,182.15,70.4]
[1747199069911,81.19560562,182.25,182.2,5.4884]
[1747199070213,75.70840562,182.25,182.14,478.123]
[1747199070510,4.26840562,182.22,182.16,5.4897]
[1747199070710,4.26840562,182.22,182.14,3.623]
[1747199071211,4.26840562,182.22,182.14,1.7586]
[1747199071412,4.26840562,182.22,182.13,15.4531]
[1747199071606,5.4886,182.21,182.13,15.4531]
[1747199071808,71.18,182.2,182.13,15.4531]
[1747199072109,71.18,182.2,182.15,5.4902]
[1747199072304,4.26840562,182.19,182.13,13.72]
[1747199073611,5.4896,182.18,182.13,13.72]
[1747199073813,4.26840562,182.16,182.13,13.72]
[1747199074111,4.26840562,182.16,182.12,49.4111]
[1747199074307,71.02,182.15,182.12,49.4111]
[1747199075010,71.02,182.15,182.12,43.92]
[1747199075916,71.02,182.15,182.12,49.4111]
[1747199078112,71.02,182.15,182.13,5.4907]
[1747199078416,71.02,182.15,182.12,43.92]
[1747199078612,71.02,182.15,182.12,49.411]
[1747199078813,71.02,182.15,182.12,43.92]
[1747199080218,71.02,182.15,182.14,5.4905]
[1747199080412,4.26840562,182.19,182.14,5.4905]
[1747199080618,70.5,182.17,182.14,5.4905]
[1747199080917,70.4,182.21,182.12,43.92]
[1747199081116,70.42,182.2,182.12,43.92]
[1747199082014,70.42,182.2,182.18,5.4893]
[1747199082616,59.7986081,182.23,182.12,114.34]
[1747199082821,70.34,182.22,182.13,3.6582]
[1747199083116,70.34,182.22,182.19,5.4887]
[1747199083323,70.34,182.22,182.13,3.6582]
[1747199084022,70.34,182.22,182.2,5.4886]
[1747199084223,70.34,182.22,182.13,3.6582]
[1747199084619,70.34,182.22,182.19,5.4887]
[1747199084819,70.34,182.22,182.13,3.6582]
[1747199085124,70.34,182.22,182.2,5.4886]
[1747199086223,70.34,182.22,182.21,5.4884]
[1747199086725,70.34,182.22,182.2,5.4887]
[1747199091021,70.34,182.22,182.21,5.4884]
[1747199091322,70.34,182.22,182.15,1.8125]
[1747199091830,70.34,182.22,182.2,5.4886]
[1747199093226,70.34,182.22,182.15,1.8125]
[1747199094927,70.34,182.22,182.19,5.4888]
[1747199095526,70.42,182.25,182.15,1.8125]
[1747199095827,59.7986081,182.29,182.17,4.26840562]
[1747199096028,69.34,182.28,182.26,5.4868]
[1747199096630,69.34,182.28,182.27,5.4866]
[1747199097129,70.4,182.31,182.2,4.26840562]
[1747199097336,69.52,182.3,182.29,5.4859]
[1747199097632,69.36,182.35,182.23,69.36]
[1747199097828,69.54,182.34,182.23,69.36]
[1747199098030,69.5,182.33,182.23,69.36]
[1747199098222,70.49261707,182.33,182.23,69.36]
[1747199098418,70.49261707,182.33,182.31,5.4854]
[1747199098623,69.5,182.33,182.31,5.4854]
[1747199099023,69.5,182.33,182.32,5.4851]
[1747199099233,69.4,182.33,182.32,5.4851]
[1747199099431,69.36,182.34,182.32,5.4851]
[1747199099834,69.36,182.34,182.3,5.4855]
[1747199100328,9.0752,182.36,182.23,73.62840562]
[1747199100534,0.99249385,182.35,182.32,5.4851]
[1747199100731,3.591,182.36,182.32,5.4851]
[1747199101132,9.0749,182.36,182.31,5.4854]
[1747199101434,3.591,182.36,182.23,73.62840562]
[1747199101636,74.5842,182.35,182.3,5.4854]
[1747199102030,74.5842,182.35,182.22,71.1541]
[1747199102031,69.34,182.34,182.22,71.1541]
[1747199102236,74.60095138,182.34,182.22,71.1541]
[1747199102529,69.34,182.34,182.22,71.1541]
[1747199102735,74.8247,182.34,182.22,71.1541]
[1747199103037,69.34,182.34,182.22,71.1541]
[1747199103234,74.8248,182.34,182.29,5.4859]
[1747199103535,74.8248,182.34,182.22,71.1541]
[1747199103738,69.34,182.34,182.22,71.1541]
[1747199103938,68.9,182.33,182.22,71.1541]
[1747199104339,68.9,182.33,182.3,5.4854]
[1747199104839,68.78,182.36,182.31,5.4853]
[1747199105243,71.1781,182.38,182.23,4.26840562]
[1747199105438,69.79242315,182.37,182.23,4.26840562]
[1747199105637,0.99242315,182.37,182.24,68.76]
[1747199105833,5.4846,182.34,182.22,1.8141]
[1747199106042,5.4846,182.34,182.24,83.03]
[1747199106541,5.4846,182.34,182.29,5.4858]
[1747199106944,4.26840562,182.35,182.24,83.03]
[1747199107242,4.26840562,182.35,182.29,5.4857]
[1747199107443,5.4847,182.34,182.29,5.4857]
[1747199107642,5.4847,182.34,182.24,83.03]
[1747199107643,68.76,182.36,182.24,13.71]
[1747199107842,4.26840562,182.34,182.29,5.4857]
[1747199108038,9.75320562,182.34,182.29,5.4857]
[1747199108945,5.485,182.33,182.29,5.4857]
[1747199109142,5.485,182.33,182.28,5.4862]
[1747199109644,5.485,182.33,182.29,5.4859]
[1747199110538,9.75340562,182.33,182.29,5.4859]
[1747199110946,5.4852,182.32,182.28,5.4862]
[1747199111246,4.26840562,182.3,182.24,13.71]
[1747199112949,9.75410562,182.3,182.26,5.4869]
[1747199113153,9.75410562,182.3,182.24,13.71]
[1747199113154,5.4857,182.3,182.24,13.71]
[1747199113645,0.95511246,182.35,182.24,13.71]
[1747199113847,68.14,182.34,182.24,13.71]
[1747199114041,68.14,182.34,182.24,84.8207]
[1747199114547,72.40840562,182.34,182.24,15.5007]
[1747199114746,4.26840562,182.32,182.24,15.5007]
[1747199115145,4.26840562,182.29,182.24,13.71]
[1747199115349,4.26840562,182.26,182.24,13.71]
[1747199115848,4.26840562,182.26,182.2,13.72]
[1747199116049,69.32,182.27,182.2,13.72]
[1747199116250,0.99304804,182.25,182.2,19.2087]
[1747199116445,4.26840562,182.26,182.2,19.2087]
[1747199116647,5.4877,182.24,182.2,13.72]
[1747199116949,72.50840562,182.23,182.2,13.72]
[1747199117143,68.24,182.23,182.2,13.72]
[1747199117345,5.4883,182.22,182.2,13.72]
[1747199119441,5.4884,182.21,182.2,13.72]
[1747199119644,5.4884,182.21,182.14,3.4651]
[1747199119845,5.4884,182.21,182.17,5.4894]
[1747199120049,5.4882,182.22,182.17,5.4894]
[1747199120849,5.4882,182.22,182.18,5.4893]
[1747199121049,5.4882,182.22,182.14,3.4651]
[1747199121252,5.4884,182.21,182.14,3.4651]
[1747199121447,5.4884,182.21,182.17,5.4894]
[1747199121753,68.24,182.23,182.14,3.4651]
[1747199121948,5.4881,182.22,182.17,5.4893]
[1747199122250,5.4881,182.22,182.14,3.4651]
[1747199122557,5.4881,182.22,182.18,5.4893]
[1747199123553,4.26840562,182.21,182.12,1.7855]
[1747199123748,4.26840562,182.21,182.11,13.72]
[1747199124051,6.12380562,182.21,182.11,13.72]
[1747199124353,5.4893,182.18,182.14,5.4903]
[1747199124555,67.64,182.17,182.14,5.4903]
[1747199124746,67.64,182.17,182.13,5.4907]
[1747199124747,73.1297,182.17,182.13,5.4907]
[1747199125153,67.64,182.17,182.13,5.4907]
[1747199126354,73.1297,182.17,182.13,5.4907]
[1747199127154,4.26840562,182.15,182.11,13.72]
[1747199127355,4.26840562,182.12,182.07,1.97]
[1747199127654,72.8314,182.11,182.07,7.4625]
[1747199127842,72.8314,182.11,182.07,1.97]
[1747199128752,5.4918,182.1,182.07,1.97]
[1747199128948,5.4918,182.1,182.06,5.4927]
[1747199129256,72.8315,182.11,182.06,5.4927]
[1747199129450,72.8315,182.11,182.07,5.4926]
[1747199129754,72.8315,182.11,182.02,67.36]
[1747199129755,67.34,182.11,182.02,67.36]
[1747199129950,67.34,182.11,182.06,5.4927]
[1747199130156,67.34,182.11,181.99,5.2978]
[1747199130345,67.34,182.11,182.0,67.38]
[1747199130546,72.8315,182.11,182.0,67.38]
[1747199131251,72.8315,182.11,182.07,5.4924]
[1747199131855,5.4918,182.1,182.06,5.4928]
[1747199132058,5.4918,182.1,182.0,67.38]
[1747199132451,5.4918,182.1,182.06,5.4926]
[1747199132647,67.34,182.11,181.99,3.5364]
[1747199132847,4.26840562,182.09,181.99,3.5364]
[1747199133357,66.76,182.08,181.99,3.5364]
[1747199133956,66.76,182.08,182.03,5.4937]
[1747199134358,66.76,182.08,181.99,3.5364]
[1747199134958,5.4927,182.07,182.03,5.4936]
[1747199136458,5.4927,182.07,182.04,5.4935]
[1747199137460,66.76,182.08,182.03,5.4937]
[1747199137959,5.4927,182.07,181.99,70.9364]
[1747199138158,5.4927,182.07,182.03,5.4936]
[1747199139350,5.4927,182.07,182.04,5.4935]
[1747199139556,5.4927,182.07,181.99,3.5364]
[1747199139860,5.4927,182.07,182.03,5.4936]
[1747199140161,66.76,182.08,181.99,3.5364]
[1747199140456,5.4927,182.07,182.03,5.4937]
[1747199141157,66.76,182.08,182.03,5.4937]
[1747199141354,5.4929,182.06,182.03,5.4937]
[1747199141859,5.4927,182.07,182.03,5.4937]
[1747199142361,5.4927,182.07,182.04,5.4935]
[1747199142964,5.4927,182.07,182.03,5.4937]
[1747199143360,5.4927,182.07,181.99,3.5364]
[1747199144168,5.4927,182.07,182.03,5.4936]
[1747199144971,66.76,182.08,182.02,5.494]
[1747199146467,5.4931,182.06,182.02,5.494]
[1747199147768,5.4933,182.05,182.02,5.494]
[1747199147970,67.42,182.06,181.97,1.96]
[1747199148373,67.42,182.06,181.99,5.4948]
[1747199148564,67.42,182.06,181.97,1.96]
[1747199149276,5.4936,182.04,182.0,5.4945]
[1747199149466,65.3,182.03,182.0,5.4945]
[1747199149871,70.7938,182.03,182.0,5.4945]
[1747199151373,65.3,182.03,182.01,5.4944]
[1747199151570,65.3,182.03,181.95,277.39359016]
[1747199152469,70.794,182.03,181.95,277.39359016]
[1747199152974,70.794,182.03,182.0,5.4945]
[1747199154376,70.7939,182.03,181.95,274.79359016]
[1747199155378,70.7939,182.03,182.0,5.4946]
[1747199158774,67.42,182.06,181.95,274.79359016]
[1747199159075,64.42,182.05,181.95,274.79359016]
[1747199159280,131.82,182.06,181.95,274.79359016]
[1747199159970,131.82,182.06,182.04,5.4933]
[1747199160780,131.82,182.06,181.98,64.84]
[1747199162081,137.3132,182.06,181.98,64.84]
[1747199163682,137.3132,182.06,181.95,209.97359016]
[1747199163885,131.82,182.06,181.96,64.82]
[1747199164278,5.4938,182.04,181.96,64.82]
[1747199164482,135.5612,182.06,181.96,64.82]
[1747199164685,135.5612,182.06,181.95,209.97359016]
[1747199165383,135.5612,182.06,182.01,5.4942]
[1747199165576,5.4934,182.05,182.01,5.4942]
[1747199165776,135.5612,182.06,182.01,5.4942]
[1747199166182,5.4936,182.04,182.01,5.4942]
[1747199166382,135.5612,182.06,182.02,5.4941]
[1747199167585,5.4934,182.05,182.01,5.4943]
[1747199168585,135.5612,182.06,182.01,5.4943]
[1747199168586,5.4935,182.04,182.01,5.4943]
[1747199168983,5.4935,182.04,182.0,5.4946]
[1747199169188,4.26840562,182.04,181.95,274.79359016]
[1747199169589,4.26840562,182.04,181.98,5.4951]
[1747199169788,5.4943,182.02,181.98,5.4951]
[1747199170086,63.6,182.01,181.98,5.4951]
[1747199170583,63.54,182.05,181.95,209.97359016]
[1747199171083,5.4942,182.02,181.95,209.97359016]
[1747199171585,5.4939,182.03,181.99,5.4948]
[1747199171888,63.54,182.05,181.99,5.4948]
[1747199172086,5.4945,182.01,181.97,5.4954]
[1747199172287,5.4945,182.01,181.95,209.97359016]
[1747199172488,63.44,182.0,181.95,209.97359016]
[1747199173892,63.34,182.02,182.01,5.4944]
[1747199176295,5.4932,182.06,182.02,5.4939]
[1747199176491,63.18,182.05,181.97,64.84]
[1747199177394,63.18,182.05,182.03,5.4936]
[1747199177895,5.4927,182.07,182.03,5.4936]
[1747199178198,68.513,182.06,182.03,5.4936]
[1747199180394,63.02,182.06,182.04,5.4934]
[1747199180996,63.02,182.06,182.03,5.4938]
[1747199182194,63.02,182.06,182.04,5.4934]
[1747199182494,65.2910081,182.08,181.97,70.3039]
[1747199182703,62.94,182.07,181.97,70.3039]
[1747199183396,5.4924,182.08,181.97,70.3039]
[1747199183599,62.88,182.07,182.04,5.4933]
[1747199183896,62.88,182.07,181.97,70.3039]
[1747199184099,62.88,182.07,182.05,5.493]
[1747199184395,62.88,182.07,181.97,70.3039]
[1747199184697,62.88,182.07,182.04,5.4933]
[1747199184996,4.26840562,182.1,182.04,5.4933]
[1747199185200,63.79393156,182.09,182.04,5.4933]
[1747199185395,62.8,182.09,182.04,5.4933]
[1747199185598,5.4924,182.08,182.04,5.4933]
[1747199186101,68.2921,182.09,182.05,5.4932]
[1747199186296,62.7,182.08,181.97,70.3039]
[1747199186697,62.7,182.08,182.05,5.493]
[1747199187298,62.7,182.08,181.97,70.3039]
[1747199187701,5.4921,182.09,181.97,70.3039]
[1747199188002,63.08,182.08,181.97,70.3039]
[1747199188404,63.02,182.07,182.05,5.4929]
[1747199189198,63.02,182.07,182.04,5.4935]
[1747199189402,62.94,182.07,182.04,5.4935]
[1747199189905,62.94,182.07,182.05,5.4932]
[1747199190102,62.94,182.07,181.97,70.3039]
[1747199191405,62.94,182.07,182.05,5.4931]
[1747199191805,62.94,182.07,181.97,5.4639]
[1747199192005,62.94,182.07,181.99,62.82]
[1747199194410,62.94,182.07,181.97,5.4639]
[1747199194707,62.94,182.07,181.98,62.82]
[1747199194910,62.94,182.07,181.99,62.82]
[1747199195512,62.94,182.07,182.05,5.4932]
[1747199195812,62.94,182.07,181.99,62.82]
[1747199197012,62.94,182.07,182.05,5.4932]
[1747199199210,68.4327,182.07,182.04,5.4935]
[1747199199613,5.4929,182.06,182.03,5.4938]
[1747199200112,62.94,182.07,182.03,5.4938]
[1747199200313,68.4327,182.07,182.03,5.4938]
[1747199200712,68.4327,182.07,182.04,5.4934]
[1747199201819,62.94,182.07,182.04,5.4934]
[1747199202614,68.4326,182.07,182.04,5.4934]
[1747199203214,62.94,182.07,182.04,5.4934]
[1747199203416,62.94,182.07,182.05,5.4932]
[1747199204511,62.94,182.07,181.97,5.4639]
[1747199204715,62.94,182.07,181.97,68.2839]
[1747199204911,62.94,182.07,181.97,5.4639]
[1747199205120,62.94,182.07,181.97,68.2839]
[1747199205616,68.4327,182.07,182.04,5.4933]
[1747199206218,62.94,182.07,182.05,5.4931]
[1747199206414,62.94,182.07,181.97,68.2839]
[1747199206722,62.94,182.07,182.04,5.4933]
[1747199207419,62.94,182.07,182.05,5.4932]
[1747199211321,2.73896863,182.06,182.05,5.4932]
[1747199211621,2.73896863,182.06,182.01,1.9]
[1747199212223,2.73896863,182.06,182.05,5.4932]
[1747199212920,64.57896863,182.06,182.04,5.4934]
[1747199214022,64.57896863,182.06,182.05,5.4932]
[1747199215524,61.84,182.06,182.05,5.4932]
[1747199215716,64.57896863,182.06,182.05,5.4932]
[1747199217822,64.57896863,182.06,182.01,1.9]
[1747199218023,2.73896863,182.04,182.01,1.9]
[1747199218422,2.73896863,182.04,182.03,5.4937]
[1747199218923,2.73896863,182.04,182.01,1.9]
[1747199219221,2.73896863,182.02,182.01,1.9]
[1747199221025,2.73896863,182.02,182.01,7.3944]
[1747199222919,2.73896863,182.02,182.01,1.9]
[1747199223126,2.73896863,182.02,181.95,209.97359016]
[1747199223425,2.73896863,181.99,181.97,5.4955]
[1747199224929,2.73896863,181.99,181.93,61.6]
[1747199225127,2.73896863,181.97,181.93,61.6]
[1747199226227,2.73896863,181.97,181.95,5.496]
[1747199226928,2.73896863,181.97,181.96,5.4959]
[1747199228532,5.4948,182.0,181.96,5.4959]
[1747199228726,2.73896863,181.98,181.96,5.4959]
[1747199229534,2.73896863,181.98,181.93,61.6]
[1747199230238,2.73896863,181.98,181.96,5.4959]
[1747199232439,5.4953,181.99,181.96,5.4959]
[1747199232440,2.73896863,181.97,181.96,5.4959]
[1747199233841,5.4953,181.99,181.95,5.4962]
[1747199234033,2.73896863,181.97,181.95,5.4962]
[1747199234938,66.3562,181.96,181.92,5.497]
[1747199235141,2.73896863,181.94,181.92,5.497]
[1747199235339,60.86,181.96,181.89,66.9444]
[1747199235544,2.73896863,181.95,181.89,66.9444]
[1747199235747,2.73896863,181.95,181.93,5.4966]
[1747199236943,2.73896863,181.95,181.92,5.4971]
[1747199238248,5.4965,181.95,181.89,5.3244]
[1747199238649,2.73896863,181.94,181.89,5.3244]
[1747199238850,2.73896863,181.93,181.89,5.3244]
[1747199239239,2.73896863,181.93,181.9,5.4975]
[1747199240345,2.73896863,181.93,181.89,5.3244]
[1747199241549,60.86,181.96,181.89,5.3244]
[1747199241744,2.73896863,181.94,181.89,5.3244]
[1747199241951,60.86,181.96,181.89,5.3244]
[1747199242246,2.73896863,181.93,181.89,5.3244]
[1747199242448,2.73896863,181.93,181.92,5.4971]
[1747199242650,60.86,181.96,181.89,5.3244]
[1747199242844,2.73896863,181.94,181.89,5.3244]
[1747199243650,61.64,181.99,181.89,5.3244]
[1747199243847,60.86,181.99,181.9,2.73896863]
[1747199244050,2.73896863,181.98,181.9,2.73896863]
[1747199244251,2.73896863,181.98,181.95,5.496]
[1747199245357,66.3551,181.99,181.95,5.496]
[1747199245653,66.3551,181.99,181.96,5.4959]
[1747199246054,60.86,181.99,181.96,5.4959]
[1747199246858,60.86,181.99,181.97,5.4956]
[1747199247158,60.86,181.99,181.89,5.3244]
[1747199247758,60.86,181.99,181.96,5.4957]
[1747199249155,9.77739843,182.01,181.97,5.4956]
[1747199249355,60.86,182.0,181.89,5.3244]
[1747199251458,60.86,182.0,181.97,5.4954]
[1747199252159,60.86,182.0,181.98,5.4951]
[1747199252959,5.4945,182.01,181.98,5.4951]
[1747199253163,60.86,182.0,181.98,5.4951]
[1747199253663,66.3548,182.0,181.97,5.4956]
[1747199254459,60.86,182.0,181.97,5.4956]
[1747199255057,5.4459,182.05,181.92,60.84]
[1747199255365,65.14289843,182.03,181.92,60.84]
[1747199255560,70.63679843,182.03,181.99,5.4948]
[1747199255763,120.6386081,182.04,181.92,60.84]
[1747199255962,60.84,182.04,181.92,60.84]
[1747199256654,156.08200623,182.06,182.02,5.4939]
[1747199256858,60.84,182.05,182.02,5.4939]
[1747199257564,60.84,182.06,181.97,60.84]
[1747199257862,60.84,182.06,181.98,5.335]
[1747199258662,60.84,182.07,182.05,5.4932]
[1747199259560,60.84,182.07,182.04,5.4933]
[1747199259764,4.28289843,182.06,181.98,66.175]
[1747199259964,4.28289843,182.06,182.03,5.4937]
[1747199260161,60.84,182.05,181.98,5.335]
[1747199260464,60.84,182.05,181.98,66.175]
[1747199260861,66.3334,182.05,182.01,5.4941]
[1747199261260,60.84,182.05,181.98,66.175]
[1747199261564,66.3333,182.05,181.98,66.175]
[1747199262566,66.3333,182.05,182.01,5.4942]
[1747199262863,60.84,182.05,181.98,66.175]
[1747199263765,60.84,182.05,182.03,5.4937]
[1747199264665,60.84,182.05,182.02,5.494]
[1747199265365,60.84,182.05,182.03,5.4937]
[1747199266571,60.84,182.05,181.98,5.335]
[1747199266773,60.84,182.05,181.98,3.4813]
[1747199267474,66.3333,182.05,182.01,5.4943]
[1747199268871,5.4935,182.04,182.01,5.4943]
[1747199269077,60.84,182.05,181.99,5.4948]
[1747199269272,60.84,182.05,181.94,1.7807]
[1747199269479,60.84,182.05,181.95,60.82]
[1747199269973,60.84,182.05,182.01,5.4944]
[1747199270173,66.3335,182.05,182.01,5.4944]
[1747199270473,60.84,182.05,182.01,5.4944]
[1747199271865,4.28289843,182.03,181.95,60.82]
[1747199272975,60.8,182.02,181.95,60.82]
[1747199273474,66.2942,182.02,181.99,5.4949]
[1747199274571,60.8,182.02,181.95,60.82]
[1747199275077,60.8,182.02,181.99,5.4947]
[1747199275278,60.8,182.02,181.95,60.82]
[1747199275976,60.8,182.02,182.0,5.4945]
[1747199276178,60.8,182.02,181.95,60.82]
[1747199276576,60.8,182.02,182.0,5.4946]
[1747199281182,60.8,182.02,181.99,5.4949]
[1747199282982,66.2942,182.02,181.99,5.4949]
[1747199284177,5.4945,182.01,181.92,3.5052]
[1747199284378,60.8,182.02,181.93,60.78]
[1747199284777,5.4947,182.01,181.97,5.4954]
[1747199284977,65.08289843,182.02,181.93,60.78]
[1747199286282,5.4948,182.0,181.93,60.78]
[1747199286777,5.4948,182.0,181.97,5.4954]
[1747199287081,65.08289843,182.02,181.93,60.78]
[1747199287387,5.4949,182.0,181.93,60.78]
[1747199288384,5.4951,181.99,181.92,3.5052]
[1747199288583,5.4951,181.99,181.92,64.2852]
[1747199288782,5.4951,181.99,181.95,5.496]
[1747199289482,5.4951,181.99,181.92,64.2852]
[1747199290076,5.4948,182.0,181.96,5.4957]
[1747199290579,65.08289843,182.02,181.96,5.4957]
[1747199290781,65.08289843,182.02,181.98,5.4952]
[1747199290980,65.08289843,182.02,181.92,64.2852]
[1747199291181,5.4945,182.01,181.92,64.2852]
[1747199291689,5.4945,182.01,181.98,5.4952]
[1747199292281,5.4948,182.0,181.96,5.4957]
[1747199292584,5.4948,182.0,181.92,64.2852]
[1747199292886,5.4948,182.0,181.96,5.4957]
[1747199293482,65.08289843,182.02,181.95,5.4962]
[1747199293688,0.99439889,182.01,181.92,60.78]
[1747199294081,0.99439889,182.01,181.94,5.4964]
[1747199294284,65.08289843,182.02,181.94,5.4964]
[1747199294580,5.4954,181.98,181.95,5.496]
[1747199294783,60.76,181.98,181.92,60.78]
[1747199295285,60.76,181.98,181.95,5.496]
[1747199296089,60.76,181.98,181.96,5.4959]
[1747199296288,60.76,181.98,181.92,60.78]
[1747199296686,60.76,181.98,181.97,5.4956]
[1747199302193,60.74,182.01,181.92,60.78]
[1747199302490,70.56609843,182.04,181.93,3.6391]
[1747199302791,5.4942,182.02,181.99,5.4948]
[1747199302991,60.74,182.03,181.93,3.6391]
[1747199303287,66.234,182.03,181.93,3.6391]
[1747199303897,66.234,182.03,182.0,5.4946]
[1747199304191,5.4941,182.02,181.93,3.6391]
[1747199304494,60.74,182.03,181.93,3.6391]
[1747199304790,66.2339,182.03,181.93,3.6391]
[1747199305388,5.4939,182.03,181.93,3.6391]
[1747199305589,66.2139,182.03,181.93,3.6391]
[1747199306091,5.4942,182.02,181.99,5.4948]
[1747199306292,60.72,182.03,181.93,3.6391]
[1747199307993,5.4941,182.02,181.99,5.4949]
[1747199309196,66.2139,182.03,182.0,5.4947]
[1747199309494,5.4939,182.03,182.0,5.4947]
[1747199309693,66.2139,182.03,182.0,5.4947]